Cogmind - Beta 16 @@@ ROGUE MODE // 2026.01.04 @ 20:57:14 Player: kim.jet.wav Result: Self-destructed Performance ------------- Evolutions (1) 500 Regions Visited (2) 400 Robots Destroyed (18) 90 Value Destroyed (378) 378 Prototype IDs (0) 0 Alien Tech Used (0) 0 Bonus (0) 0 TOTAL SCORE: 1368 Bonus ------- None Cogmind --------- Core Integrity 375/400 Matter 167/300 Energy 125/125 System Corruption 0% Temperature Cool (20) Movement Walking (120) Location -9/Materials Parts ------- > --- POWER (1) -------- Light Ion Engine > --- PROPULSION (2) --- Aluminum Leg Aluminum Leg > --- UTILITY (3) ------ Medium Storage Unit Seismic Detector Hacking Suite > --- WEAPON (3) ------- Beam Cannon Mini Grenade Launcher > --- INVENTORY (10) --- Light Ion Engine Sensor Array Signal Interpreter EM Pulse Gun Peak State ------------ > --- POWER ------------ Light Ion Engine > --- PROPULSION ------- Aluminum Leg Aluminum Leg > --- UTILITY ---------- Medium Storage Unit Seismic Detector Hacking Suite > --- WEAPON ----------- EM Pulse Gun Beam Cannon Mini Grenade Launcher > --- INVENTORY -------- Light Ion Engine EM Pulse Gun [Rating: 12] Favorites ----------- Power Light Ion Engine Engine Light Ion Engine Propulsion Aluminum Leg Leg Aluminum Leg Utility Small Storage Unit Device Seismic Detector Storage Small Storage Unit Hackware Hacking Suite Weapon EM Pulse Gun Energy Gun EM Pulse Gun Energy Cannon Beam Cannon Launcher Mini Grenade Launcher Build | -11 -10 -9 ------- Run | Yrd Mat Mat Slots Evolved 2 | . . 2 Power . | . . . Propulsion . | . . . Utility 1 | . . 1 Weapon 1 | . . 1 Parts Attached 11 | 7 3 1 Power 1 | 1 . . Engine 1 | 1 . . Core . | . . . Reactor . | . . . Propulsion 2 | 2 . . Treads . | . . . Leg 2 | 2 . . Wheel . | . . . Hover . | . . . Flight . | . . . Utility 4 | 2 2 . Device 1 | 1 . . Storage 2 | 1 1 . Processor . | . . . Hackware 1 | . 1 . Protection . | . . . Artifact . | . . . Weapon 4 | 2 1 1 Energy Gun 2 | 2 . . Energy Cannon 1 | . 1 . Ballistic Gun . | . . . Ballistic Cannon . | . . . Launcher 1 | . . 1 Special Weapon . | . . . Impact Weapon . | . . . Slashing Weapon . | . . . Piercing Weapon . | . . . Special Melee Weapon . | . . . Unidentified Prototypes . | . . . Parts Lost 1 | . . 1 Power . | . . . Propulsion . | . . . Utility . | . . . Weapon 1 | . . 1 Highest Loss Streak 1 | . . 1 To Critical Strikes . | . . . Average Backups 1 | . 2 3 Power . | . 1 1 Propulsion . | . . . Utility . | . . 1 Weapon . | . . 1 Tool/Special . | . . . Unused Backups 3 | . . 3 Power 1 | . . 1 Propulsion . | . . . Utility 2 | . . 2 Weapon . | . . . Tool/Special . | . . . Average Slot Usage (%) 96 | . 100 89 Engine 13 | . 14 11 Leg 26 | . 28 22 Device 9 | . 10 7 Storage 13 | . 14 11 Hackware 6 | . 4 11 Energy Gun 20 | . 27 7 Energy Cannon 4 | . . 11 Launcher 2 | . . 8 Peak Build Rating 12 | 7 9 12 Average Rating 7 | 5 7 11 On Entrance 5 | . 7 9 Avg Prop Armor Cover (%) 12 | 12 . . Naked Turns . | . . . Heaviest Build 20 | 13 18 20 Greatest Support 20 | 20 20 20 Greatest Overweight (x) 2 | 2 . . Average Overweight (x) . | . . . Largest Inventory Capacity 10 | 8 10 10 Average Capacity 8 | 7 8 10 Most Carried 4 | 1 4 4 Average Carried 1 | . 2 3 Final Capacity 10 | 8 10 10 Final Carried 4 | 1 3 4 Class Distribution -------------------- 89% | Mutant 10% | Gunner Dominant Class ---------------- Mutant | -10/Materials Mutant | -9/Materials Resources | -11 -10 -9 ----------- Run | Yrd Mat Mat Matter Collected 312 | 270 . 42 Remotely . | . . . Salvage Created 532 | 175 289 68 Parts 43 | 19 20 4 Haulers Intercepted . | . . . Recyclers Shooed . | . . . Parts Field Recycled . | . . . Retrieved Matter . | . . . Parts Self-Destructed . | . . . Prevented . | . . . Parts Restored . | . . . Kills | -11 -10 -9 ------- Run | Yrd Mat Mat Combat Hostiles Destroyed 9 | . 7 2 Guns 6 | . 6 . AOE 3 | . 1 2 Classes Destroyed 7 | 2 4 1 Tunneler 5 | 5 . . Recycler 1 | 1 . . Operator 1 | . 1 . Watcher 2 | . 1 1 Swarmer 3 | . 3 . Grunt 4 | . 4 . Sentry 2 | . . 2 Best Kill Streak 5 | 4 5 2 Combat Bots Only 5 | . 5 2 Max Kills in Single Turn 1 | 1 1 1 Gunslinging . | . . . Exploded 1 | . 1 1 Melee . | . . . Uniques/NPCs Destroyed . | . . . Combat | -11 -10 -9 -------- Run | Yrd Mat Mat Hostile Shots Fired 32 | . 21 11 Missed 12 | . 7 5 Hits 20 | . 14 6 Projectile 20 | . 14 6 Damage Taken 322 | . 191 131 Core 76 | . 51 25 Absorbed by Shields . | . . . Core Remaining (%) 89 | 100 79 . Volleys Fired 54 | 17 19 18 Largest 2 | 2 2 1 Hottest 80 | 80 80 60 Shots Fired 90 | 34 38 18 Gun 72 | 34 38 . Cannon 5 | . . 5 Launcher 13 | . . 13 Special . | . . . Kinetic . | . . . Thermal 5 | . . 5 Explosive 13 | . . 13 Electromagnetic 72 | 34 38 . Robot Hit Streak 7 | 6 6 7 Robot Miss Streak 3 | 3 3 . Penetration Max . | . . . Secondary Targets 1 | . 1 . Max Gunslinging Chain 1 | . 1 . Shots Hit Robots 46 | 21 21 4 Core Hits 27 | 7 14 6 Critical Kills . | . . . Critical Parts Destroyed . | . . . Critical Strikes 1 | . 1 . Corrupt 1 | . 1 . Melee Attacks . | . . . Impact . | . . . Slashing . | . . . Piercing . | . . . Sneak Attacks . | . . . Combat Hostiles . | . . . Follow-up Attacks . | . . . Damage Inflicted 816 | 240 376 200 Guns 571 | 240 331 . Cannons 18 | . . 18 Explosions 227 | . 45 182 Melee . | . . . Ramming . | . . . Kinetic . | . . . Thermal 63 | . 45 18 Explosive 182 | . . 182 Electromagnetic 571 | 240 331 . Impact . | . . . Slashing . | . . . Piercing . | . . . Highest Corruption 1 | . 1 . Average Corruption 1 | . 1 . Corruption Purged . | . . . Corruption Blocked . | . . . Overload Shots . | . . . Overflow Damage 1 | . . 1 Projectiles . | . . . Explosions 1 | . . 1 Melee . | . . . Knockbacks . | . . . Impact . | . . . Kinetic . | . . . Secondary . | . . . Self-Inflicted Damage 77 | . 36 41 Shots 3 | . 1 2 Rammed . | . . . Targets Rammed . | . . . Kicked . | . . . Crushed . | . . . Highest Temperature 144 | 72 144 56 Average Temperature 39 | 24 53 25 Received Heat Transfer 84 | . 69 15 Siege Activations . | . . . Martial Activations . | . . . Shielding Activations . | . . . Robots Disrupted . | . . . Combat Hostiles . | . . . Robots Corrupted . | . . . Combat Hostiles . | . . . Parts Fried 2 | 1 1 . Impact Corruptions . | . . . Robots Melted . | . . . Combat Hostiles . | . . . Parts Melted . | . . . Heat Transferred 87 | . 50 37 Parts Sabotaged . | . . . Parts Stolen . | . . . Parts Stripped . | . . . Power Chain Reactions 2 | . 2 . Alert | -11 -10 -9 ------- Run | Yrd Mat Mat Maximum Alert Level . | . . . Low Security (%) 100 | 100 100 100 Level 1 . | . . . Level 2 . | . . . Level 3 . | . . . Level 4 . | . . . Level 5 . | . . . High Security . | . . . Max Security . | . . . Peak Influence 152 | 15 152 150 Initial 50 | . . 50 Average 68 | 1 104 81 Influence Increases 419 | 30 239 150 Destroy 0b10 Robot/C 180 | . 140 40 Destroy 0b10 Robot/NC 45 | 30 10 5 Destroy Leader 54 | . 32 22 Disable Machine 30 | . 15 15 Destroy Structure 80 | . 12 68 Lose Combat Pursuer 30 | . 30 . Influence Decreases 289 | 30 120 139 Entered New Map 69 | . . 69 Time Decay 210 | 30 120 60 Lost Part 10 | . . 10 Squads Dispatched 2 | . 1 1 Investigation 1 | . 1 . Extermination . | . . . Reinforcement 1 | . . 1 Assault . | . . . Garrison . | . . . Intercept . | . . . Searches Triggered . | . . . Construction Impeded . | . . . Haulers Reinforced . | . . . Active Scanning Responses . | . . . Cargo Convoy Interrupts . | . . . Stealth | -11 -10 -9 --------- Run | Yrd Mat Mat Distress Signals 2 | . 1 1 Communications Jammed . | . . . Distress Signals . | . . . Times Spotted 15 | . 11 4 Peak Tracking Total 6 | . 6 2 Tactical Retreats 1 | . 1 . Traps | -11 -10 -9 ------- Run | Yrd Mat Mat Traps Triggered . | . . . Indirectly . | . . . Trap Hack Attempts . | . . . Triggered . | . . . Disarmed . | . . . Reprogrammed . | . . . Reused . | . . . Traps Extracted . | . . . Installed . | . . . Triggered . | . . . Machines | -11 -10 -9 ---------- Run | Yrd Mat Mat Machines Disabled 2 | . 1 1 Max in Single Turn 1 | . 1 1 Machines Repaired . | . . . Machines Dismantled . | . . . Machines Sabotaged . | . . . Overloaded Fab Kills . | . . . Hacking | -11 -10 -9 --------- Run | Yrd Mat Mat Machines Accessed 1 | . 1 . Terminals 1 | . 1 . Fabricators . | . . . Repair Stations . | . . . Recycling Units . | . . . Scanalyzers . | . . . Garrison Access . | . . . Total Hacks 3 | . 3 . Successful . | . . . Failed 3 | . 3 . Catastrophic 2 | . 2 . Database Lockouts . | . . . Manual 3 | . 3 . Terminals 3 | . 3 . Fabricators . | . . . Repair Stations . | . . . Recycling Units . | . . . Scanalyzers . | . . . Garrison Access . | . . . Terminal Hacks . | . . . Fabricator Hacks . | . . . Repair Station Hacks . | . . . Recycling Unit Hacks . | . . . Scanalyzer . | . . . Garrison Access Hacks . | . . . Unauthorized Hacks . | . . . Terminals . | . . . Fabricators . | . . . Repair Stations . | . . . Recycling Units . | . . . Scanalyzers . | . . . Garrison Access . | . . . Data Cores Recovered 1 | . 1 . Used . | . . . Hacking Detections 1 | . 1 . Full Trace Events 1 | . 1 . Feedback Events 1 | . 1 . Corruption 1 | . 1 . Feedback Blocked . | . . . Robot Schematics Acquired . | . . . Robots Built . | . . . Authchips . | . . . Time . | . . . Total Robot Build Rating . | . . . Part Schematics Acquired . | . . . Parts Built . | . . . Authchips . | . . . Time . | . . . Total Part Build Rating . | . . . Part Studies Acquired . | . . . Parts Repaired . | . . . Time . | . . . Parts Recycled . | . . . Recycled Matter . | . . . Retrieved Matter . | . . . Retrieved Components . | . . . Parts Scanalyzed . | . . . Part Schematics Acquired . | . . . Parts Damaged . | . . . Bothacking | -11 -10 -9 ------------ Run | Yrd Mat Mat Used RIF Installer . | . . . Robots Hacked . | . . . Non-combat . | . . . Combat . | . . . Robot Hacks Applied . | . . . Relay Couplers Released . | . . . Fabnet Peak Effective % . | . . . Robots Rewired . | . . . Allies Hacked . | . . . Hacks Repelled . | . . . Allies | -11 -10 -9 -------- Run | Yrd Mat Mat Total Allies . | . . . Largest Group . | . . . Highest-Rated Group . | . . . Highest-Rated Ally . | . . . Total Orders . | . . . Ally Attacks . | . . . Total Damage . | . . . Kills . | . . . Allies Corrupted . | . . . Allies Melted . | . . . Intel | -11 -10 -9 ------- Run | Yrd Mat Mat Active Infowar (turns) 304 | 18 190 96 Seismic 304 | 18 190 96 Robot Analysis Total . | . . . Derelict Logs Recovered . | . . . Drone Launches . | . . . Drone Recoveries . | . . . Exploration | -11 -10 -9 ------------- Run | Yrd Mat Mat Turns Passed 569 | 171 274 124 Spaces Moved 317 | 92 157 68 Core 13 | 13 . . Treads . | . . . Legs 304 | 79 157 68 Wheels . | . . . Hover . | . . . Flight . | . . . Fastest Speed 50 | 50 120 120 Average Speed 118 | 115 120 120 Slowest Speed 150 | 150 120 120 Overloaded Moves . | . . . Propulsion Burnouts . | . . . Robots Hopped . | . . . Potential Cave-ins . | . . . Cave-ins Triggered . | . . . Exploration Rate (%) 18 | 6 40 10 Regions Visited 2 Branch Regions . Pre-discovered Areas . | . . . Known Exits Taken . | . . . Unknown Exits Taken 2 | 1 1 . Scrap Searched . | . . . Spaces Dug 6 | . . 6 Terrain Destroyed 76 | . 10 66 Melee . | . . . Projectile . | . . . AOE 76 | . 10 66 Terrain Rammed . | . . . Walls Destroyed . | . . . Machines Disabled . | . . . Actions | -11 -10 -9 --------- Run | Yrd Mat Mat Total 416 | 119 206 91 Wait 25 | 3 21 1 Move 315 | 91 156 68 Hop . | . . . Pick Up 6 | 1 3 2 Fast Attach 8 | 7 . 1 Attach 3 | . 2 1 Detach 2 | . 2 . Swap 1 | . 1 . Drop 2 | . 2 . Fire 54 | 17 19 18 Melee . | . . . Ram . | . . . Kick . | . . . Crush . | . . . Escape Stasis . | . . . Rewire . | . . . Trap . | . . . Miscellaneous . | . . . Route ------- -11/Scrapyard -10/Materials -9/Materials History --------- Turn | Location | Event 2 | -11/Scrapyard | Met Revision 17 11 | -11/Scrapyard | Discovered new exit (range 15) 172 | -11/Scrapyard | Entered Materials 307 | -10/Materials | Build established: Mutant 397 | -10/Materials | Discovered new exit (range 16) 446 | -10/Materials | Entered another Materials area 446 | -9/Materials | Evolved 2 slots: Utility x1, Weapon x1 570 | -9/Materials | Self-destructed Last Messages --------------- 00538_ U-05 Engineer builds a Wall. 00538_ K-01 Serf collects debris. 00541_ The unstable cave ceiling collapses. 00541_ K-01 Serf collects debris. 00542_ U-05 Engineer lays Concrete. 00547_ The unstable cave ceiling collapses. 00547_ U-05 Engineer lays Concrete. 00552_ Acquired 42 matter. 00552_ U-05 Engineer builds a Wall. 00553_ U-05 Engineer lays Concrete. 00557_ K-01 Serf collects debris. 00557_ U-05 Engineer lays Concrete. 00559_ U-05 Engineer builds a Wall. 00559_ U-05 Engineer lays Concrete. 00560_ K-01 Serf collects debris. 00560_ U-05 Engineer lays Concrete. 00564_ K-01 Serf collects debris. 00564_ U-05 Engineer lays Concrete. 00564_ U-05 Engineer builds a Wall. 00569_ U-05 Engineer lays Concrete. Map ----- +----------------------------------------------------+ | ????????????????????????????????????? | | ????????????????????????????????????? | | ????????????????????????????????????? | | ????????????????????????????????????? | | ????????????????????????????????????? | | ????????????????????????????????????? | | ????????????????????????????????????? | | ????????????????????????????????????? | | ????????????????????????????????????? | | ????????????????????????????????????? | | ???????????? ?????????????????????? | | ???????????? #????????????????????? | | ???????????? #????????????????????? | | ???????????? ######???????????????? | | ???????????? +???????????????? | | ???????????? #???????????????? | | ???????????? #???????????????? | | ???????????# k #???????????????? | | ???????????# +???????????????? | | ???????????# #???????????????? | | ???????????# ##??????????????? | | ???????????# ######?????????? | | ???????????# g ?????????? | | ???????????+ ??????????? | | ???????????# "" ????????????? | | ???????????#@ "Y ????????????? | | ???????????# ### "" ????????????? | | ???????????# #????????????????????? | | ???????????# #????????????????????? | | ??????##???# #????????????????????? | | ?###### #### #????????????????????? | | ?# ## #????????????????????? | | ?# " ## #????????????????????? | | ?# T ## ##???????????????????? | | ?#""" " # #???????????????????? | | ?#""" ##?? ???????????????? | | ?#""" #? ???????????????? | | ?#""" ! # ##???????????????? | | ?#""" #???????????????? | | ?# = u# ##??????????????? | | ?###### ????????????? | | ???# !!! # !!!#??????????? | | ???# !!! !!!#??????????? | | ???# ! # !! #??????????? | | ?#### # # #####???????????? | | ?# ########?????????????? | | ?# ??????????? | | ?# * ??????????? | | ?# ??????????? | | ?# # #####?????????????? | +----------------------------------------------------+ Best States ------------- Heat Dissipation 28 Energy Generation 10 Energy Capacity 125 Matter Stores 300 Matter Capacity 300 Sight Range 16 Terrain Scan Density 10 Evasion (%) 55 Offensive Hacking 10 Item Schematics ----------------- None Robot Schematics ------------------ None Fabricated ------------ Nothing Repaired ---------- Nothing Studied --------- None Alien Tech Used ----------------- None Achievements -------------- None Challenges ------------ None Game ------ Seed EncryptedCouplerCore Manual? 0 Play Time 00:09:07 Cumulative 51.0 hours Start 2026.01.04 @ 20:49:38 End 2026.01.04 @ 20:57:14 Sessions 1 Manual Loads 0 Difficulty Rogue Special Mode None Game No. 221 Rogue 221 Adventurer 0 Explorer 0 Win Type - Total 0 Types 0/0/0/0/0/0/0/0/0/0 Lore% 27 Gallery% 21 Achievement% 16 Wizard Run 0 Options --------- Layout 0 ASCII 1 Keyboard 1 Movement Numpad Keybinds 1 Fullscreen 1 Font 18/X11 Map View 76x50 Zoom Use 0% Tactical HUD 1 Map Filters NONE Filters NONE Steam 1 RUN: 2eb63309-91ce-4275-b0c3-e5b7262c332d